fUST/lending_fUST_20250427
["ID","MTS","AMOUNT","RATE_DAILY","PERIOD"]
[359146868,1745741451448,-1626.19,0.00021643,2]
[359146869,1745741451459,-2884.11,0.00021643,2]
[359146870,1745741451470,-2174.91,0.00021643,2]
[359146871,1745741451481,-1093.93,0.00021643,2]
[359146872,1745741451491,-1479.4,0.00021643,2]
[359146873,1745741451500,-1301.81,0.00021643,2]
[359146874,1745741451511,-1551.9,0.00021643,2]
[359146875,1745741451521,-1362.74,0.00021643,2]
[359146876,1745741451532,-1285.79,0.00021643,2]
[359146877,1745741451543,-801.75,0.00021643,2]
[359146878,1745741451553,-226.78,0.00021643,2]
[359146879,1745741451563,-769.81,0.00021643,2]
[359146880,1745741451574,-797.76,0.00021643,2]
[359146881,1745741451584,-597.26,0.00021643,2]
[359146882,1745741451594,-400.0,0.00021643,2]
[359146883,1745741451604,-1842.96,0.00021643,2]
[359146884,1745741451614,-295.26488051,0.00021659,3]
[359146885,1745741451624,-239.84119403,0.00021704,2]
[359146886,1745741451634,-153.0,0.00021781,2]
[359146887,1745741451644,-153.0,0.00021781,2]
[359146888,1745741451654,-421.50997755,0.000219,2]
[359146889,1745741451663,-1109.79,0.00021917,2]
[359146890,1745741451673,-996.05,0.00021917,2]
[359146891,1745741451682,-1069.72,0.00021917,2]
[359146892,1745741451692,-1202.19,0.00021917,2]
[359146893,1745741451703,-1026.06,0.00021917,2]
[359146894,1745741451712,-2153.76,0.00021917,2]
[359146895,1745741451723,-2870.82,0.00021917,2]
[359146896,1745741451733,-1658.55,0.00021917,2]
[359146897,1745741451745,-1907.14,0.00021917,2]
[359146898,1745741451758,-421.39,0.00021917,2]
[359146899,1745741451769,-502.18,0.00021917,2]
[359146900,1745741451779,-1330.61,0.00021917,2]
[359146901,1745741451789,-1649.76,0.00021917,2]
[359146902,1745741451799,-1828.13,0.00021917,2]
[359146903,1745741451810,-1071.72,0.00021917,2]
[359146904,1745741451821,-1777.42,0.00021917,2]
[359146905,1745741451831,-1363.46,0.00021917,2]
[359146906,1745741451841,-1220.27,0.00021917,2]
[359146907,1745741451851,-2454.04,0.00021917,2]
[359146908,1745741451861,-1626.19,0.00021917,2]
[359146909,1745741451871,-2884.11,0.00021917,2]
[359146910,1745741451882,-2174.91,0.00021917,2]
[359146911,1745741451892,-1093.93,0.00021917,2]
[359146912,1745741451903,-1479.4,0.00021917,2]
[359146913,1745741451913,-1551.9,0.00021917,2]
[359146914,1745741451925,-1362.74,0.00021917,2]
[359146915,1745741451934,-1285.79,0.00021917,2]
[359146916,1745741451946,-801.75,0.00021917,2]
[359146917,1745741451956,-769.81,0.00021917,2]
[359146918,1745741451965,-797.76,0.00021917,2]
[359146919,1745741451975,-597.26,0.00021917,2]
[359146920,1745741451985,-428.81,0.00021917,2]
[359146921,1745741451995,-1842.96,0.00021917,2]
[359146922,1745741452006,-151.0,0.00021918,2]
[359146923,1745741452016,-151.0,0.00021918,2]
[359146924,1745741452027,-150.0,0.00021918,2]
[359146925,1745741452036,-1000.0,0.00021952,2]
[359146926,1745741452046,-641.64019336,0.00021952,2]
[359146927,1745741452057,-500.0,0.00021952,2]
[359146928,1745741452066,-254.56660134,0.00021952,2]
[359146929,1745741452076,-1000.0,0.00021952,2]
[359146930,1745741452085,-634.12285287,0.00021952,2]
[359146931,1745741452095,-1000.0,0.00021952,2]
[359146932,1745741452105,-607.54184964,0.00021952,2]
[359146933,1745741452114,-1000.0,0.00021952,2]
[359146934,1745741452123,-1000.0,0.00021952,2]
[359146935,1745741452133,-1000.0,0.00021952,2]
[359146936,1745741452143,-1000.0,0.00021952,2]
[359146937,1745741452152,-500.0,0.00021952,2]
[359146938,1745741452162,-1000.0,0.00021952,2]
[359146939,1745741452171,-500.0,0.00021952,2]
[359146940,1745741452181,-500.0,0.00021952,2]
[359146941,1745741452191,-58659.3,0.00021999,5]
[359146942,1745741452202,-160.0,0.00022,8]
[359146943,1745741452212,-160.0,0.00022,8]
[359146944,1745741452222,-2518.71097183,0.00022,2]
[359146945,1745741452374,-430.83297829,0.00016438,2]
[359146946,1745741452383,-803.71983964,0.00019178,2]
[359146947,1745741452395,-129.26016036,0.00019178,2]
[359146948,1745741452406,-932.98,0.00019452,2]
[359146949,1745741452415,-932.98,0.00019726,2]
[359146950,1745741452426,-932.98,0.0002,2]
[359146951,1745741452436,-932.98,0.00020273,2]
[359146952,1745741452446,-932.98,0.00020547,2]
[359146953,1745741452456,-932.98,0.00020821,2]
[359146954,1745741452466,-932.98,0.00021095,2]
[359146955,1745741452477,-1466.39841059,0.00022,2]
[359146956,1745741452519,-541.65,0.00021369,2]
[359146957,1745741452531,-391.33,0.00021369,2]
[359146958,1745741452541,-932.98,0.00021643,2]
[359146959,1745741452550,-932.98,0.00021917,2]
[359146960,1745741452560,-90159.20398509,0.00022,2]
[359146961,1745741452572,-2258.73431569,0.00022,2]
[359146962,1745741452584,-536.92244762,0.00022,2]
[359146963,1745741452596,-14796.71411191,0.00022,2]
[359146964,1745741452608,-10848.67006092,0.00022,2]
[359146965,1745741452620,-5502.4136246,0.00022,2]
[359146966,1745741452633,-8944.24278894,0.00022,2]
[359146967,1745741452645,-9382.92911508,0.00022,2]
[359146969,1745741837627,5000.0,0.00021,10]
[359149118,1745742508720,191.64397492,0.0001964,18]
[359149119,1745742508999,191.64397492,0.0002114,33]
[359149289,1745742632091,-300.0,0.0001373,2]
[359149290,1745742632101,-10118.66527496,0.00013731,5]
[359149291,1745742632110,-1000.0,0.00013731,2]
[359149292,1745742632119,-347.4812932,0.0001485,2]
[359149293,1745742632129,-300.0,0.00015046,2]
[359149294,1745742632138,-288.88020666,0.00015077,2]
[359149295,1745742632148,-246.05406714,0.000158,2]
[359149296,1745742632157,-246.05406709,0.000158,2]
[359149297,1745742632166,-208.14108363,0.00016,2]
[359149298,1745742632176,-1262.08949335,0.00016064,2]
[359149299,1745742632185,-155.65734528,0.00016064,2]
[359149300,1745742632194,-207.4,0.00016128,2]
[359149301,1745742632204,-500.0,0.00016133,2]
[359149302,1745742632213,-500.0,0.00016133,2]
[359149303,1745742632223,-500.0,0.00016133,2]
[359149304,1745742632232,-500.0,0.00016133,2]
[359149305,1745742632242,-500.0,0.00016133,2]
[359149306,1745742632252,-500.0,0.00016133,2]
[359149307,1745742632261,-500.0,0.00016133,2]
[359149308,1745742632271,-500.0,0.00016133,2]
[359149309,1745742632280,-392.66226283,0.00016133,2]
[359149310,1745742632290,-500.0,0.00016133,2]
[359149311,1745742632300,-500.0,0.00016137,2]
[359149312,1745742632311,-272.04776478,0.00016137,2]
[359149313,1745742632324,-225.25811292,0.00016137,2]
[359149314,1745742632333,-9660.75196264,0.00016138,2]
[359149315,1745742632349,-65823.58439215,0.00016138,2]
[359149333,1745742638141,-1475.53809944,0.00016138,2]
[359149334,1745742638196,-7645.03307382,0.00016138,2]
[359149335,1745742638208,-69699.50588427,0.00016138,2]
[359149336,1745742638220,-215695.58658768,0.00016138,2]
[359149337,1745742638229,-379.75044871,0.00016164,2]
[359149338,1745742638239,-152.0,0.00016223,2]
[359149339,1745742638249,-155.65734527,0.00016338,2]
[359149340,1745742638258,-400.0,0.00016438,2]
[359149341,1745742638267,-200.0,0.00016438,2]
[359149342,1745742638277,-200.0,0.00016438,2]
[359149344,1745742638287,-400.0,0.00016438,2]
[359149346,1745742638296,-400.0,0.00016438,2]
[359149348,1745742638307,-400.0,0.00016438,2]
[359149349,1745742638322,-500.0,0.00016438,2]
[359149350,1745742638332,-400.0,0.00016438,2]
[359149351,1745742638343,-400.0,0.00016438,2]
[359149352,1745742638353,-400.0,0.00016438,2]
[359149353,1745742638363,-400.0,0.00016438,2]
[359149354,1745742638373,-400.0,0.00016438,2]
[359149355,1745742638382,-400.0,0.00016438,2]
[359149356,1745742638396,-400.0,0.00016438,2]
[359149357,1745742638406,-500.0,0.00016438,2]
[359149358,1745742638418,-400.0,0.00016438,2]
[359149359,1745742638429,-500.0,0.00016438,2]
[359149360,1745742638439,-400.0,0.00016438,2]
[359149361,1745742638448,-400.0,0.00016438,2]
[359149362,1745742638458,-400.0,0.00016438,2]
[359149363,1745742638468,-400.0,0.00016438,2]
[359149364,1745742638477,-400.0,0.00016438,2]
[359149365,1745742638488,-500.0,0.00016438,2]
[359149366,1745742638498,-421.56,0.00016438,2]
[359149367,1745742638507,-414.57424824,0.00016438,2]
[359149368,1745742638517,-400.0,0.00016438,2]
[359149369,1745742638527,-400.0,0.00016438,2]
[359149370,1745742638537,-500.0,0.00016438,2]
[359149371,1745742638546,-400.0,0.00016438,2]
[359149372,1745742638557,-400.0,0.00016438,2]
[359149373,1745742638566,-400.0,0.00016438,2]
[359149374,1745742638576,-919.95,0.00016438,2]
[359149375,1745742638586,-500.0,0.00016438,2]
[359149376,1745742638595,-504.96613365,0.00016438,2]
[359149377,1745742638606,-400.0,0.00016438,2]
[359149378,1745742638615,-568.07,0.00016438,2]
[359149379,1745742638625,-502.5665096,0.00016438,2]
[359149380,1745742638634,-400.0,0.00016438,2]
[359149381,1745742638644,-306.3205114,0.00016438,2]
[359149382,1745742638653,-400.0,0.00016438,2]
[359149383,1745742638663,-400.0,0.00016438,2]
[359149384,1745742638673,-400.0,0.00016438,2]
[359149385,1745742638682,-253.44544372,0.00016438,2]
[359149386,1745742638691,-500.0,0.00016438,2]
[359149387,1745742638701,-400.0,0.00016438,2]
[359149388,1745742638711,-400.0,0.00016438,2]
[359149389,1745742638720,-200.0,0.00016438,2]
[359149390,1745742638730,-400.0,0.00016438,2]
[359149391,1745742638739,-400.0,0.00016438,2]
[359149392,1745742638748,-400.0,0.00016438,2]
[359149393,1745742638758,-200.0,0.00016438,2]
[359149394,1745742638767,-400.0,0.00016438,2]
[359149395,1745742638777,-400.0,0.00016438,2]
[359149396,1745742638786,-400.0,0.00016438,2]
[359149397,1745742638796,-400.0,0.00016438,2]
[359149398,1745742638805,-500.0,0.00016438,2]
[359149399,1745742638815,-400.0,0.00016438,2]
[359149400,1745742638825,-500.0,0.00016438,2]
[359149401,1745742638834,-500.0,0.00016438,2]
[359149402,1745742638845,-400.0,0.00016438,2]
[359149403,1745742638854,-400.0,0.00016438,2]
[359149404,1745742638863,-500.0,0.00016438,2]
[359149405,1745742638873,-500.0,0.00016438,2]
[359149406,1745742638882,-400.0,0.00016438,2]
[359149407,1745742638891,-400.0,0.00016438,2]
[359149408,1745742638900,-443.54,0.00016438,2]
[359149409,1745742638910,-400.0,0.00016438,2]
[359149410,1745742638919,-549.92,0.00016438,2]
[359149411,1745742638928,-400.0,0.00016438,2]
[359149412,1745742638938,-609.38,0.00016438,2]
[359149413,1745742638948,-400.0,0.00016438,2]
[359149414,1745742638958,-1163.86,0.00016438,2]
[359149415,1745742638968,-500.0,0.00016438,2]
[359149416,1745742638977,-500.0,0.00016438,2]
[359149417,1745742638987,-500.0,0.00016438,2]
[359149418,1745742638997,-639.28,0.00016438,2]
[359149419,1745742639007,-400.0,0.00016438,2]
[359149420,1745742639016,-400.0,0.00016438,2]
[359149421,1745742639025,-500.0,0.00016438,2]
[359149422,1745742639035,-400.0,0.00016438,2]
[359149423,1745742639045,-454.49,0.00016438,2]
[359149424,1745742639055,-632.35,0.00016438,2]
[359149425,1745742639066,-542.07,0.00016438,2]
[359149426,1745742639076,-400.0,0.00016438,2]
[359149427,1745742639085,-400.0,0.00016438,2]
[359149428,1745742639095,-500.0,0.00016438,2]
[359149429,1745742639105,-500.0,0.00016438,2]
[359149430,1745742639115,-500.0,0.00016438,2]
[359149431,1745742639125,-493.13,0.00016438,2]
[359149432,1745742639135,-200.0,0.00016438,2]
[359149433,1745742639145,-500.0,0.00016438,2]
[359149434,1745742639155,-406.76,0.00016438,2]
[359149435,1745742639165,-400.0,0.00016438,2]
[359149436,1745742639175,-724.97,0.00016438,2]
[359149437,1745742639185,-488.18,0.00016438,2]
[359149438,1745742639195,-500.0,0.00016438,2]
[359149439,1745742639205,-848.7,0.00016438,2]
[359149440,1745742639214,-408.7,0.00016438,2]
[359149441,1745742639224,-500.0,0.00016438,2]
[359149442,1745742639234,-500.0,0.00016438,2]
[359149443,1745742639244,-400.0,0.00016438,2]
[359149444,1745742639255,-500.0,0.00016438,2]
[359149445,1745742639264,-219.40161598,0.00016438,2]
[359149446,1745742639274,-500.0,0.00016438,2]
[359149447,1745742639283,-500.0,0.00016438,2]
[359149448,1745742639293,-204.59516419,0.00016438,2]
[359149449,1745742639303,-400.0,0.00016438,2]
[359149450,1745742639314,-400.0,0.00016438,2]
[359149451,1745742639324,-1057.76,0.00016438,2]
[359149452,1745742639335,-402.17,0.00016438,2]
[359149453,1745742639345,-552.81,0.00016438,2]
[359149454,1745742639355,-200.0,0.00016438,2]
[359149455,1745742639365,-400.0,0.00016438,2]
[359149456,1745742639374,-200.0,0.00016438,2]
[359149457,1745742639384,-400.0,0.00016438,2]
[359149458,1745742639393,-500.0,0.00016438,2]
[359149459,1745742639403,-400.0,0.00016438,2]
[359149460,1745742639413,-827.98,0.00016438,2]
[359149461,1745742639424,-400.0,0.00016438,2]
[359149462,1745742639435,-552.85,0.00016438,2]
[359149463,1745742639445,-500.0,0.00016438,2]
[359149464,1745742639455,-537.53,0.00016438,2]
[359149465,1745742639466,-500.0,0.00016438,2]
[359149466,1745742639476,-956.94,0.00016438,2]
[359149467,1745742639486,-517.3,0.00016438,2]
[359149468,1745742639496,-635.71,0.00016438,2]
[359149469,1745742639505,-500.0,0.00016438,2]
[359149470,1745742639515,-1544.72,0.00016438,2]
[359149471,1745742639525,-500.0,0.00016438,2]
[359149472,1745742639535,-400.0,0.00016438,2]
[359149473,1745742639544,-492.35878879,0.00016473,2]
[359149474,1745742639553,-500.0,0.00016473,2]
[359149475,1745742639563,-237.25972672,0.00016473,2]
[359149476,1745742639572,-500.0,0.00016473,2]
[359149477,1745742639582,-500.0,0.00016473,2]
[359149478,1745742639591,-505.9426864,0.00016473,2]
[359149479,1745742639601,-500.0,0.00016473,2]
[359149480,1745742639611,-500.0,0.00016473,2]
[359149481,1745742639621,-500.0,0.00016473,2]
[359149482,1745742639631,-155.65734527,0.00016612,2]
[359149483,1745742639640,-246.05406709,0.00016624,2]
[359149484,1745742639650,-391.45,0.00016712,2]
[359149485,1745742639659,-400.0,0.00016712,2]
[359149486,1745742639669,-400.0,0.00016712,2]
[359149487,1745742639678,-400.0,0.00016712,2]
[359149488,1745742639688,-400.0,0.00016712,2]
[359149489,1745742639697,-400.0,0.00016712,2]
[359149490,1745742639707,-500.0,0.00016712,2]
[359149491,1745742639716,-400.0,0.00016712,2]
[359149493,1745742639726,-400.0,0.00016712,2]
[359149494,1745742639745,-400.0,0.00016712,2]
[359149495,1745742639756,-500.0,0.00016712,2]
[359149496,1745742639766,-400.0,0.00016712,2]
[359149497,1745742639776,-400.0,0.00016712,2]
[359149498,1745742639786,-400.0,0.00016712,2]
[359149499,1745742639795,-400.0,0.00016712,2]
[359149500,1745742639805,-400.0,0.00016712,2]
[359149501,1745742639815,-351.47561163,0.00016712,2]
[359149502,1745742639825,-421.56,0.00016712,2]
[359149503,1745742639834,-400.0,0.00016712,2]
[359149504,1745742639844,-400.0,0.00016712,2]
[359149505,1745742639855,-400.0,0.00016712,2]
[359149506,1745742639864,-500.0,0.00016712,2]
[359149507,1745742639875,-500.0,0.00016712,2]
[359149509,1745742639885,-919.95,0.00016712,2]
[359149511,1745742639895,-400.0,0.00016712,2]
[359149513,1745742639905,-568.07,0.00016712,2]
[359149515,1745742639915,-200.0,0.00016712,2]
[359149517,1745742639925,-400.0,0.00016712,2]
[359149519,1745742639935,-366.78,0.00016712,2]
[359149520,1745742639945,-400.0,0.00016712,2]
[359149521,1745742639955,-400.0,0.00016712,2]
[359149522,1745742639966,-500.0,0.00016712,2]
[359149523,1745742639976,-500.0,0.00016712,2]
[359149524,1745742639986,-400.0,0.00016712,2]
[359149525,1745742639996,-500.0,0.00016712,2]
[359149526,1745742640006,-400.0,0.00016712,2]
[359149527,1745742640016,-400.0,0.00016712,2]
[359149528,1745742640026,-400.0,0.00016712,2]
[359149529,1745742640036,-528.4,0.00016712,2]
[359149530,1745742640045,-400.0,0.00016712,2]
[359149531,1745742640055,-400.0,0.00016712,2]
[359149532,1745742640065,-400.0,0.00016712,2]
[359149533,1745742640075,-400.0,0.00016712,2]
[359149534,1745742640084,-400.0,0.00016712,2]
[359149535,1745742640095,-443.54,0.00016712,2]
[359149536,1745742640104,-400.0,0.00016712,2]
[359149537,1745742640115,-549.92,0.00016712,2]
[359149538,1745742640125,-400.0,0.00016712,2]
[359149539,1745742640134,-609.38,0.00016712,2]
[359149540,1745742640144,-400.0,0.00016712,2]
[359149541,1745742640154,-1163.86,0.00016712,2]
[359149542,1745742640164,-639.28,0.00016712,2]
[359149543,1745742640173,-400.0,0.00016712,2]
[359149544,1745742640184,-400.0,0.00016712,2]
[359149545,1745742640195,-400.0,0.00016712,2]
[359149546,1745742640205,-454.49,0.00016712,2]
[359149547,1745742640215,-632.35,0.00016712,2]
[359149548,1745742640225,-542.07,0.00016712,2]
[359149549,1745742640235,-400.0,0.00016712,2]
[359149550,1745742640246,-493.13,0.00016712,2]
[359149551,1745742640256,-406.76,0.00016712,2]
[359149552,1745742640266,-500.0,0.00016712,2]
[359149553,1745742640276,-724.97,0.00016712,2]
[359149554,1745742640286,-488.18,0.00016712,2]
[359149555,1745742640296,-848.7,0.00016712,2]
[359149556,1745742640306,-408.7,0.00016712,2]
[359149557,1745742640317,-400.0,0.00016712,2]
[359149558,1745742640327,-400.0,0.00016712,2]
[359149559,1745742640337,-400.0,0.00016712,2]
[359149560,1745742640347,-1057.76,0.00016712,2]
[359149561,1745742640359,-402.17,0.00016712,2]
[359149563,1745742640369,-552.81,0.00016712,2]
[359149564,1745742640379,-400.0,0.00016712,2]
[359149565,1745742640389,-400.0,0.00016712,2]
[359149572,1745742640403,-400.0,0.00016712,2]
[359149574,1745742640576,-827.98,0.00016712,2]
[359149576,1745742640586,-400.0,0.00016712,2]
[359149578,1745742640596,-552.85,0.00016712,2]
[359149579,1745742640606,-537.53,0.00016712,2]
[359149580,1745742640615,-956.94,0.00016712,2]
[359149582,1745742640625,-517.3,0.00016712,2]
[359149583,1745742640635,-635.71,0.00016712,2]
[359149584,1745742640646,-1544.72,0.00016712,2]
[359149585,1745742640657,-400.0,0.00016712,2]
[359149586,1745742640667,-160.65195966,0.00016773,2]
[359149587,1745742640676,-500.0,0.00016773,2]
[359149588,1745742640685,-500.0,0.00016773,2]
[359149589,1745742640695,-155.65734527,0.00016886,2]
[359149590,1745742640704,-400.0,0.00016986,2]
[359149591,1745742640714,-400.48850003,0.00016986,2]
[359149592,1745742640724,-400.0,0.00016986,2]
[359149593,1745742640734,-391.78,0.00016986,2]
[359149594,1745742640747,-400.0,0.00016986,2]
[359149595,1745742640756,-400.0,0.00016986,2]
[359149596,1745742640766,-400.0,0.00016986,2]
[359149597,1745742640777,-200.0,0.00016986,2]
[359149598,1745742640786,-400.0,0.00016986,2]
[359149599,1745742640796,-400.0,0.00016986,2]
[359149600,1745742640805,-400.0,0.00016986,2]
[359149601,1745742640815,-400.0,0.00016986,2]
[359149602,1745742640825,-379.47,0.00016986,2]
[359149603,1745742640835,-421.56,0.00016986,2]
[359149604,1745742640845,-400.0,0.00016986,2]
[359149605,1745742640855,-400.0,0.00016986,2]
[359149606,1745742640865,-400.0,0.00016986,2]
[359149607,1745742640874,-919.95,0.00016986,2]
[359149608,1745742640884,-400.0,0.00016986,2]
[359149609,1745742640893,-568.07,0.00016986,2]
[359149610,1745742640903,-400.0,0.00016986,2]
[359149611,1745742640914,-400.0,0.00016986,2]
[359149612,1745742640924,-400.0,0.00016986,2]
[359149613,1745742640935,-400.0,0.00016986,2]
[359149614,1745742640945,-171.93,0.00016986,2]
[359149615,1745742640955,-400.0,0.00016986,2]
[359149616,1745742640965,-400.0,0.00016986,2]
[359149617,1745742640975,-400.0,0.00016986,2]
[359149618,1745742640985,-400.0,0.00016986,2]
[359149619,1745742640994,-400.0,0.00016986,2]
[359149620,1745742641004,-400.0,0.00016986,2]
[359149621,1745742641014,-400.0,0.00016986,2]
[359149622,1745742641023,-443.54,0.00016986,2]
[359149623,1745742641033,-400.0,0.00016986,2]
[359149624,1745742641043,-549.92,0.00016986,2]
[359149625,1745742641053,-400.0,0.00016986,2]
[359149626,1745742641063,-609.38,0.00016986,2]
[359149627,1745742641072,-400.0,0.00016986,2]
[359149628,1745742641082,-1163.86,0.00016986,2]
[359149629,1745742641092,-639.28,0.00016986,2]
[359149630,1745742641102,-400.0,0.00016986,2]
[359149631,1745742641112,-400.0,0.00016986,2]
[359149632,1745742641121,-400.0,0.00016986,2]
[359149633,1745742641131,-454.49,0.00016986,2]
[359149634,1745742641141,-632.35,0.00016986,2]
[359149635,1745742641151,-542.07,0.00016986,2]
[359149636,1745742641160,-400.0,0.00016986,2]
[359149637,1745742641170,-493.13,0.00016986,2]
[359149638,1745742641179,-406.76,0.00016986,2]
[359149639,1745742641190,-724.97,0.00016986,2]
[359149640,1745742641200,-488.18,0.00016986,2]
[359149641,1745742641209,-848.7,0.00016986,2]
[359149642,1745742641219,-408.7,0.00016986,2]
[359149643,1745742641230,-400.0,0.00016986,2]
[359149644,1745742641240,-400.0,0.00016986,2]
[359149645,1745742641250,-400.0,0.00016986,2]
[359149646,1745742641260,-1057.76,0.00016986,2]
[359149647,1745742641270,-402.17,0.00016986,2]
[359149648,1745742641280,-552.81,0.00016986,2]
[359149649,1745742641290,-400.0,0.00016986,2]
[359149650,1745742641300,-400.0,0.00016986,2]
[359149651,1745742641309,-400.0,0.00016986,2]
[359149652,1745742641319,-827.98,0.00016986,2]
[359149653,1745742641328,-400.0,0.00016986,2]
[359149654,1745742641337,-413.94297616,0.00016986,2]
[359149655,1745742641353,-138.90702384,0.00016986,2]
[359149656,1745742641363,-537.53,0.00016986,2]
[359149657,1745742641372,-956.94,0.00016986,2]
[359149658,1745742641381,-517.3,0.00016986,2]
[359149659,1745742641390,-635.71,0.00016986,2]
[359149660,1745742641399,-1544.72,0.00016986,2]
[359149661,1745742641408,-400.0,0.00016986,2]
[359149662,1745742641417,-155.65734527,0.0001716,2]
[359149663,1745742641426,-500.0,0.0001717,2]
[359149664,1745742641436,-840.47993636,0.0001723,2]
[359149665,1745742641445,-160.0,0.0001723,2]
[359149666,1745742641454,-160.0,0.0001723,2]
[359149667,1745742641463,-160.0,0.0001723,2]
[359149668,1745742641472,-421.1409203,0.0001723,2]
[359149669,1745742641482,-12584.55399671,0.0001723,2]
[359149670,1745742641491,-2689.4,0.00017259,2]
[359149671,1745742641500,-2689.4,0.00017259,2]
[359149672,1745742641509,-400.0,0.0001726,2]
[359149673,1745742641518,-285.28,0.0001726,2]
[359149674,1745742641527,-400.0,0.0001726,2]
[359149675,1745742641537,-400.0,0.0001726,2]
[359149676,1745742641546,-400.0,0.0001726,2]
[359149677,1745742641555,-200.0,0.0001726,2]
[359149678,1745742641564,-400.0,0.0001726,2]
[359149679,1745742641573,-400.0,0.0001726,2]
[359149680,1745742641582,-400.0,0.0001726,2]
[359149681,1745742641591,-421.56,0.0001726,2]
[359149682,1745742641600,-400.0,0.0001726,2]
[359149683,1745742641610,-400.0,0.0001726,2]
[359149684,1745742641619,-400.0,0.0001726,2]
[359149685,1745742641629,-919.95,0.0001726,2]
[359149686,1745742641639,-400.0,0.0001726,2]
[359149687,1745742641648,-568.07,0.0001726,2]
[359149688,1745742641657,-400.0,0.0001726,2]
[359149689,1745742641667,-400.0,0.0001726,2]
[359149690,1745742641676,-400.0,0.0001726,2]
[359149691,1745742641685,-400.0,0.0001726,2]
[359149692,1745742641695,-400.0,0.0001726,2]
[359149693,1745742641704,-400.0,0.0001726,2]
[359149694,1745742641715,-400.0,0.0001726,2]
[359149695,1745742641724,-400.0,0.0001726,2]
[359149696,1745742641733,-400.0,0.0001726,2]
[359149697,1745742641743,-400.0,0.0001726,2]
[359149698,1745742641752,-400.0,0.0001726,2]
[359149699,1745742641762,-443.54,0.0001726,2]
[359149700,1745742641771,-400.0,0.0001726,2]
[359149701,1745742641781,-549.92,0.0001726,2]
[359149702,1745742641791,-400.0,0.0001726,2]
[359149703,1745742641800,-609.38,0.0001726,2]
[359149704,1745742641809,-400.0,0.0001726,2]
[359149705,1745742641818,-1163.86,0.0001726,2]
[359149706,1745742641828,-639.28,0.0001726,2]
[359149707,1745742641837,-400.0,0.0001726,2]
[359149708,1745742641847,-400.0,0.0001726,2]
[359149709,1745742641857,-500.74,0.0001726,2]
[359149710,1745742641867,-454.49,0.0001726,2]
[359149711,1745742641876,-632.35,0.0001726,2]
[359149712,1745742641885,-542.07,0.0001726,2]
[359149713,1745742641896,-400.0,0.0001726,2]
[359149714,1745742641905,-493.13,0.0001726,2]
[359149715,1745742641915,-406.76,0.0001726,2]
[359149716,1745742641924,-724.97,0.0001726,2]
[359149717,1745742641933,-488.18,0.0001726,2]
[359149718,1745742641942,-848.7,0.0001726,2]
[359149719,1745742641952,-408.7,0.0001726,2]
[359149720,1745742641961,-400.0,0.0001726,2]
[359149721,1745742641970,-400.0,0.0001726,2]
[359149722,1745742641979,-400.0,0.0001726,2]
[359149723,1745742641988,-1057.76,0.0001726,2]